bitfinex-derivatives/quotes_ETHF0:USTF0_20251001
["timestamp","ask_amount","ask_price","bid_price","bid_amount"]
[1759293265243,0.88978,4153.6,4153.5,0.87355924]
[1759293266444,1.10838,4153.6,4153.5,0.87355924]
[1759293266645,1.43118,4153.6,4153.5,0.31805924]
[1759293268747,1.43118,4153.6,4153.5,0.00255924]
[1759293268952,0.7529,4153.0,4152.9,0.33957985]
[1759293269145,1.86304888,4153.0,4152.9,0.33957985]
[1759293269548,1.86304888,4153.0,4152.9,0.02407985]
[1759293269949,1.86304888,4153.0,4152.9,0.34159001]
[1759293270154,0.6741,4153.0,4152.9,0.76759001]
[1759293270545,0.2115,4153.0,4152.9,0.76759001]
[1759293270745,0.4555,4153.0,4152.9,0.76759001]
[1759293271148,0.6741,4153.0,4152.9,0.76759001]
[1759293273253,0.9969,4153.0,4152.9,0.76759001]
[1759293274661,0.6741,4153.0,4152.9,0.76759001]
[1759293274955,1.43024,4153.0,4152.9,0.56059001]
[1759293276059,1.10744,4153.0,4152.9,0.76759001]
[1759293276655,1.43024,4153.0,4152.9,0.76759001]
[1759293277459,1.10744,4153.0,4152.9,0.76759001]
[1759293278160,1.43024,4153.0,4152.9,0.76759001]
[1759293279761,1.10744,4153.0,4152.9,0.76759001]
[1759293279961,1.43024,4153.0,4152.9,0.76759001]
[1759293281561,1.43024,4153.0,4152.9,0.56059001]
[1759293281764,1.43024,4153.0,4152.9,0.02609001]
[1759293282263,1.43024,4153.0,4152.9,0.34159001]
[1759293282461,0.43347,4151.8,4151.7,0.39767284]
[1759293282657,0.43347,4151.8,4151.5,0.85143046]
[1759293282658,10.83716,4151.7,4151.5,6.99e-06]
[1759293282858,0.86369,4150.6,4150.5,0.664]
[1759293283062,1.97683888,4150.6,4150.5,0.664]
[1759293283357,1.18655,4150.1,4150.0,0.426]
[1759293283552,2.3017509,4150.1,4150.0,0.42789532]
[1759293284153,2.3017509,4150.1,4150.0,0.22089532]
[1759293285760,2.3017509,4150.1,4149.8,0.3155]
[1759293285761,1.18659,4149.7,4149.6,0.7415]
[1759293286065,2.29973888,4149.7,4149.6,0.7415]
[1759293286567,2.29973888,4149.7,4149.6,0.74339611]
[1759293286760,1.11079,4149.7,4149.6,0.74339611]
[1759293287860,1.43359,4149.7,4149.6,0.74339611]
[1759293288163,0.6771,4149.7,4149.6,0.74339611]
[1759293288566,0.6771,4149.7,4148.7,0.86614888]
[1759293288567,0.1357,4148.0,4147.0,0.0435]
[1759293288758,0.3228,4148.3,4148.0,0.43386]
[1759293288958,0.3228,4148.3,4148.2,0.426]
[1759293289265,0.75663,4148.4,4148.2,0.426]
[1759293289463,0.5708,4148.3,4148.2,0.426]
[1759293289669,0.5708,4148.3,4148.2,0.42807984]
[1759293289866,0.3228,4148.3,4148.2,0.42807984]
[1759293290069,0.248,4148.3,4148.2,0.42807984]
[1759293290270,0.5708,4148.3,4148.2,0.42807984]
[1759293290568,0.7823,4148.3,4148.2,0.42807984]
[1759293290770,0.5708,4148.3,4148.2,0.60107984]
[1759293292272,1.0009,4148.3,4148.2,0.42807984]
[1759293293670,1.86704888,4148.3,4148.2,0.42807984]
[1759293293870,1.86704888,4148.3,4148.2,0.00207984]
[1759293296269,1.0009,4148.3,4148.2,0.00207984]
[1759293297966,0.7529,4148.3,4148.2,0.00207984]
[1759293298177,1.0009,4148.3,4148.2,0.00207984]
[1759293298769,1.0009,4148.3,4148.2,0.22607984]
[1759293299274,1.0009,4148.3,4148.2,0.00207984]
[1759293300780,0.7529,4148.3,4148.2,0.22607984]
[1759293301075,0.7529,4148.3,4148.2,0.43397984]
[1759293301076,1.0009,4148.3,4148.2,0.43397984]
[1759293301273,1.43473,4148.3,4148.2,0.43397984]
[1759293301775,0.7823,4148.3,4148.2,1.04141984]
[1759293301974,0.7823,4148.3,4148.2,0.60757984]
[1759293302175,1.21613,4148.3,4148.2,0.43397984]
[1759293302375,1.44093,4148.3,4148.2,0.43397984]
[1759293302578,1.44093,4148.3,4148.2,0.00207984]
[1759293308783,0.65464,4147.3,4147.2,0.65795]
[1759293309080,0.1358,4147.5,4147.4,1.03943]
[1759293309081,0.5838,4147.5,4147.4,1.03943]
[1759293309673,0.3358,4147.5,4147.4,1.04209265]
[1759293310278,0.1358,4148.0,4147.4,1.04209265]
[1759293310279,0.4687,4147.8,4147.7,0.43389]
[1759293310482,0.1358,4148.0,4147.9,1.03938]
[1759293310483,0.4716,4148.0,4147.9,1.03938]
[1759293310779,0.6923,4148.0,4147.9,0.86578]
[1759293313381,0.6923,4148.0,4147.9,1.03938]
[1759293314478,0.3358,4148.2,4148.1,1.03936]
[1759293314677,0.6922,4148.5,4148.4,1.03932]
[1759293314882,0.917,4148.5,4148.4,0.86572]
[1759293318984,1.35081,4148.5,4148.4,0.65782]
[1759293319289,0.7813,4148.3,4148.2,0.65784]
[1759293321686,0.7813,4148.3,4148.2,0.86574]
[1759293321989,0.5565,4148.3,4148.2,1.03884]
[1759293322386,0.5565,4148.3,4148.2,0.86574]
[1759293322589,1.19753,4148.3,4148.2,0.4319]
[1759293322789,1.19753,4148.3,4148.2,0.86574]
[1759293323386,0.7637,4148.3,4148.2,0.86574]
[1759293323888,0.5565,4148.3,4148.2,1.03924]
[1759293324385,0.6992,4148.5,4148.4,1.05292]
[1759293324582,1.7307059,4148.9,4148.4,1.05292]
[1759293324583,1.7307059,4148.9,4148.8,0.43378]
[1759293324789,0.3165,4148.9,4148.8,2.05740357]
[1759293325296,0.3165,4149.0,4148.9,0.6191]
[1759293325592,0.4515,4149.0,4148.9,0.6191]
[1759293326185,0.6625,4149.0,4148.9,0.6191]
[1759293326989,0.8824,4149.5,4149.4,0.2291]
[1759293327180,1.1294,4149.5,4149.4,0.66282]
[1759293327596,1.1294,4149.5,4149.4,0.87932]
[1759293328894,0.8824,4149.5,4149.4,1.88384357]
[1759293329196,1.1294,4149.5,4149.4,0.87932]
[1759293329585,0.3165,4149.5,4149.4,1.05282]
[1759293329785,0.5275,4149.8,4149.7,0.87929]
[1759293329995,0.7745,4149.8,4149.7,1.05279]
[1759293330290,0.7745,4149.8,4149.7,0.87929]
[1759293330894,0.5275,4149.8,4149.7,0.87929]
[1759293332693,0.7466,4149.8,4149.1,2.08890357]
[1759293332998,0.346,4149.5,4149.4,0.87932]
[1759293333387,0.6625,4149.5,4149.4,0.87932]
[1759293333789,0.4515,4149.5,4149.4,0.87932]
[1759293333990,0.4515,4149.5,4149.4,2.05734357]
[1759293335098,0.31855202,4150.1,4150.0,1.05276]
[1759293335294,0.31855202,4150.1,4150.0,2.05728357]
[1759293336589,0.74865202,4150.1,4150.0,0.87926]
[1759293336789,0.74865202,4150.1,4150.0,0.43366]
[1759293337692,0.211,4149.9,4149.8,0.43367]
[1759293337899,0.7466,4149.9,4149.8,0.43367]
[1759293339190,0.86377,4149.9,4149.7,0.43368]
[1759293339392,0.7466,4149.8,4149.7,0.43368]
[1759293342308,0.7466,4149.6,4149.5,0.66281]
[1759293343600,1.1803,4149.6,4149.5,0.66281]
[1759293345604,0.43372,4149.4,4149.0,1.00452357]
[1759293345793,0.7466,4148.9,4148.8,0.87938]
[1759293346606,0.5275,4148.9,4148.8,1.05288]
[1759293347002,0.3165,4148.9,4148.8,1.05288]
[1759293347411,0.5651,4149.5,4149.4,0.87932]
[1759293347806,0.8816,4149.5,4149.4,0.87932]
[1759293348305,0.6625,4149.5,4149.4,0.87932]
[1759293348608,0.4515,4149.5,4149.4,1.05282]
[1759293349205,0.6625,4149.5,4149.4,1.05282]
[1759293349913,0.4515,4149.5,4149.4,1.05282]
[1759293350111,0.3165,4149.9,4149.8,0.82368]
[1759293350300,0.3165,4149.9,4149.8,2.05730357]
[1759293351012,0.3165,4149.9,4149.6,1.08425]
[1759293351013,0.86377,4149.9,4149.7,0.43368]
[1759293351205,0.7466,4149.8,4149.7,0.43368]
[1759293351406,0.4301,4149.3,4149.2,4.44142357]
[1759293351607,0.7466,4149.3,4149.2,1.23362357]
[1759293351913,0.7466,4149.3,4149.2,1.45012357]
[1759293352411,0.7466,4149.3,4149.2,0.43374]
[1759293354212,0.7832,4148.6,4148.5,1.50831492]
[1759293354513,0.7832,4148.6,4148.5,0.65351]
[1759293354907,0.7832,4148.6,4148.5,0.43381]
[1759293355520,0.7832,4148.6,4148.5,0.65351]
[1759293358521,0.7832,4148.6,4148.5,0.43381]
[1759293358723,0.7832,4148.6,4148.5,0.65351]
[1759293358919,1.0292,4148.6,4148.5,0.65351]
[1759293360023,0.7832,4148.6,4148.5,0.86471]
[1759293361122,0.7832,4148.6,4148.5,0.43381]
[1759293361632,0.7832,4148.6,4148.5,0.65351]
[1759293361821,0.7832,4148.6,4148.5,0.86471]
[1759293367438,0.7832,4148.6,4148.5,0.65351]
[1759293367933,0.7832,4148.6,4148.5,0.86471]
[1759293374134,0.3307,4148.9,4148.6,1.258]
[1759293374333,3.2078,4149.0,4148.8,1.86920357]
[1759293374636,3.6735,4149.5,4149.4,0.86462]
[1759293374829,3.6735,4149.5,4149.4,2.04264357]
[1759293375130,3.903,4149.5,4149.4,2.04264357]
[1759293375430,0.135,4150.0,4149.8,0.4309]
[1759293375431,0.3307,4149.9,4149.8,0.4309]
[1759293375634,0.3307,4149.9,4149.8,2.04260357]
[1759293375824,0.7832,4149.9,4149.8,0.65338]
[1759293376631,0.7832,4149.9,4149.8,0.86458]
[1759293378035,0.3307,4149.9,4149.8,2.04260357]
[1759293378337,3.20985202,4150.1,4150.0,1.04696]
[1759293378834,0.00205202,4150.1,4150.0,1.04696]
[1759293380532,0.00205202,4150.1,4150.0,6.04696]
[1759293382037,0.00205202,4150.1,4150.0,6.29296]
[1759293382539,0.34005202,4150.1,4150.0,6.29296]
[1759293384245,0.34005202,4150.1,4150.0,7.16015314]
[1759293385142,0.00205202,4150.1,4150.0,7.16015314]
[1759293385436,1.67395202,4150.6,4150.5,0.4336]
[1759293385635,3.2078,4151.2,4150.9,0.43356]
[1759293385840,0.8025,4151.0,4150.9,1.84765314]
[1759293386440,0.80562921,4151.0,4150.9,1.85054441]
[1759293387532,1.13472921,4151.0,4150.9,1.85054441]
[1759293387834,1.13472921,4151.0,4150.9,0.65655127]
[1759293389546,0.88972921,4151.0,4150.9,0.65655127]
[1759293389949,1.13472921,4151.0,4150.9,0.65655127]
[1759293391853,1.13472921,4151.0,4150.9,1.19465127]
[1759293392150,1.13042921,4151.0,4150.9,0.43645127]
[1759293392553,1.13042921,4151.0,4150.9,0.65655127]
[1759293393052,1.56397921,4151.0,4150.9,0.65655127]
[1759293395350,0.75872921,4151.0,4150.9,2.06184441]
[1759293395653,0.00312921,4151.0,4150.9,2.06184441]
[1759293395851,3.2078,4151.2,4151.1,1.19174]
[1759293396062,3.9634,4151.2,4151.1,1.19174]
[1759293396752,3.96607468,4151.2,4151.1,1.19174]
[1759293398156,0.00267468,4151.2,4151.1,1.19174]
[1759293400351,3.4241,4151.7,4151.6,1.19169]
[1759293400548,3.2078,4151.7,4151.6,1.19169]
[1759293400955,0.5454,4151.7,4151.6,1.19169]
[1759293401159,0.4265,4152.1,4152.0,0.65355]
[1759293401456,0.4265,4152.1,4152.0,0.98035]
[1759293401457,0.67413674,4152.1,4152.0,0.98035]
[1759293401857,0.1267,4152.0,4151.7,0.3268]
[1759293402159,0.7556,4151.8,4151.7,1.19168]
[1759293403751,0.54803674,4152.1,4152.0,1.19165]
[1759293403949,0.54803674,4152.1,4152.0,2.18864314]
[1759293404357,0.75823674,4152.1,4152.0,2.18864314]
[1759293404758,1.00323674,4152.1,4152.0,2.05884314]
[1759293405254,1.00323674,4152.1,4152.0,1.19165]
[1759293406858,1.00323674,4152.1,4152.0,0.7582]
[1759293409258,0.00263674,4152.1,4152.0,0.888]
[1759293409461,0.75823674,4152.1,4152.0,0.7582]
[1759293409854,0.75823674,4152.1,4151.9,0.43345]
[1759293410054,0.8823,4152.0,4151.9,0.98035]
[1759293410256,1.1273,4152.0,4151.9,0.98035]
[1759293410659,1.1273,4152.0,4151.9,1.19165]
[1759293411355,1.1273,4152.0,4151.9,0.43345]
[1759293412457,0.8823,4152.0,4151.9,0.98035]
[1759293412754,0.7904,4152.0,4151.9,1.19165]
[1759293412963,1.0006,4152.0,4151.9,1.19165]
[1759293413158,1.1312,4152.0,4151.9,1.19165]
[1759293417060,0.7526,4151.6,4151.5,0.967]
[1759293417262,0.7526,4151.6,4151.5,1.1799]
[1759293420460,0.7526,4151.6,4151.5,0.4335]
[1759293421076,0.7526,4151.6,4151.5,0.967]
[1759293421271,0.7526,4151.6,4151.5,1.1799]
[1759293422169,0.7526,4151.6,4151.5,2.04709314]
[1759293422370,0.3113,4151.9,4151.8,0.4215]
[1759293422572,0.7755,4151.9,4151.8,2.04706314]
[1759293422969,0.9976,4151.9,4151.8,2.04706314]
[1759293423164,0.5305,4151.9,4151.8,2.04706314]
[1759293423375,0.2192,4151.9,4151.8,2.04706314]
[1759293424264,0.7526,4151.9,4151.8,2.04706314]
[1759293424465,0.5305,4151.9,4151.8,2.04706314]
[1759293424672,0.00263674,4152.1,4152.0,1.30675]
[1759293426469,3.2078,4152.7,4152.6,0.43339]
[1759293426666,3.2078,4152.7,4152.6,2.04698314]
[1759293426866,3.427,4152.7,4152.6,2.04698314]
[1759293427062,3.7383,4152.7,4152.6,2.04698314]
[1759293427470,3.74028035,4152.7,4152.6,2.04698314]
[1759293427673,0.22118035,4152.7,4152.6,2.04698314]
[1759293428381,0.00198035,4152.7,4152.6,2.04698314]
[1759293428673,0.00198035,4152.7,4152.6,1.17979]
[1759293431771,0.00198035,4152.7,4152.6,1.42479]
[1759293436174,0.022,4152.9,4152.8,1.17976]
[1759293436479,0.7526,4153.5,4153.4,1.1797]
[1759293436675,0.2192,4153.5,4153.4,2.04689314]
[1759293436868,0.3113,4154.0,4153.6,1.17968]
[1759293437173,3.9635219,4153.7,4153.6,0.85478]
[1759293437377,3.9635219,4153.7,4153.6,1.17968]
[1759293439676,3.2109219,4153.7,4153.6,1.17968]
[1759293439877,0.0031219,4153.7,4153.6,1.17968]
[1759293440181,0.5500219,4153.7,4153.6,1.17968]
[1759293441482,0.0031219,4153.7,4153.6,1.17968]
[1759293444184,0.5527219,4153.7,4153.6,1.17968]
[1759293444888,0.0031219,4153.7,4153.6,1.17968]
[1759293445277,3.2078,4154.2,4154.1,0.7731]
[1759293445589,0.5474,4154.7,4154.6,1.20628]
[1759293445783,0.5474,4154.7,4154.6,2.07347314]
[1759293446178,0.55004545,4154.7,4154.6,2.07347314]
[1759293446382,0.55004545,4154.7,4154.6,2.21002964]
[1759293446578,0.76034545,4154.7,4154.6,2.21002964]
[1759293446778,5.76034545,4154.7,4154.6,0.00233961]
[1759293446980,5.76034545,4154.7,4154.6,1.77684964]
[1759293446981,3.75784545,4154.7,4154.6,1.77684964]
[1759293447584,3.21044545,4154.7,4154.6,1.77684964]
[1759293447988,3.43054545,4154.7,4154.6,1.77684964]
[1759293448189,0.22274545,4154.7,4154.6,1.77684964]
[1759293448390,0.76034545,4154.7,4154.6,1.77684964]
[1759293448587,0.76034545,4154.7,4154.6,0.44033961]
[1759293448789,0.76034545,4154.7,4154.6,0.00233961]
[1759293448993,1.00534545,4154.7,4154.6,0.00233961]
[1759293449192,0.76034545,4154.7,4154.6,0.77543961]
[1759293449385,1.00534545,4154.7,4154.6,0.77543961]
[1759293449583,1.00534545,4154.7,4154.6,0.22263961]
[1759293450190,1.00534545,4154.7,4154.6,0.77543961]
[1759293450382,3.5351,4155.3,4155.2,1.20621]
[1759293450578,3.2078,4155.3,4155.2,2.20762003]
[1759293451481,3.43064942,4155.3,4155.2,2.20762003]
[1759293451686,3.96824942,4155.3,4155.2,2.20762003]
[1759293452185,3.96824942,4155.3,4155.2,0.43311]
[1759293452590,3.96824942,4155.3,4155.2,0.65341]
[1759293452990,4.21324942,4155.3,4155.2,0.65341]
[1759293453492,1.00544942,4155.3,4155.2,0.65341]
[1759293454185,0.1369,4155.0,4154.9,0.43315]
[1759293454493,0.1369,4155.0,4154.6,0.00233961]
[1759293454494,0.7577,4154.8,4154.7,0.43317]
[1759293454792,4.2105,4154.8,4154.7,0.43317]
[1759293455794,4.2105,4154.8,4154.6,0.00233961]
[1759293456090,0.7577,4154.7,4154.6,0.65580961]
[1759293456689,1.0027,4154.7,4154.6,0.65580961]
[1759293457185,1.0027,4154.7,4154.6,0.00233961]
[1759293458191,6.0027,4154.7,4154.6,0.00233961]
[1759293459594,1.0027,4154.7,4154.6,0.00233961]
[1759293460093,0.1369,4154.0,4153.2,3.2078]
[1759293460394,0.7577,4153.3,4153.2,4.41422]
[1759293460588,0.2201,4153.3,4153.2,4.41422]
[1759293460794,0.7577,4153.3,4153.2,3.64112]
[1759293461094,1.0027,4153.3,4153.2,0.43505551]
[1759293461394,1.0027,4153.3,4153.2,0.65535551]
[1759293462091,1.0027,4153.3,4153.2,0.22203551]
[1759293464294,0.7577,4153.3,4153.2,0.55713551]
[1759293464491,1.0027,4153.3,4153.2,0.55713551]
[1759293466391,1.0027,4153.3,4153.2,0.00173551]
[1759293466896,1.0027,4153.3,4153.2,0.22203551]
[1759293468098,3.5351,4153.5,4153.4,0.7731]
[1759293468295,0.7577,4153.9,4153.8,0.7731]
[1759293468501,1.0027,4153.9,4153.8,1.20635]
[1759293469709,3.4279,4154.0,4153.9,0.5554]
[1759293469995,3.4279,4154.0,4153.9,0.7731]
[1759293470197,4.1024,4154.0,4153.9,0.7731]
[1759293471101,3.2078,4154.0,4153.9,0.7731]
[1759293471898,3.2078,4154.0,4153.8,0.43325]
[1759293471899,0.245,4154.2,4154.1,0.7731]
[1759293472101,0.245,4154.2,4154.1,1.77451003]
[1759293472491,0.4651,4154.3,4154.2,1.20632]
[1759293472907,0.245,4154.3,4154.2,1.20632]
[1759293473401,0.3273,4154.6,4154.1,1.00141003]
[1759293473402,0.7803,4154.6,4154.5,0.87009]
[1759293473594,0.7803,4154.6,4154.5,2.33860003]
[1759293474202,0.5353,4154.6,4154.5,2.33860003]
[1759293474506,0.208,4154.6,4154.5,2.33860003]
[1759293475004,0.5467,4154.6,4154.5,2.33860003]
[1759293477504,0.8987,4155.0,4154.9,1.20365]
[1759293477705,1.1437,4155.0,4154.9,1.20365]
[1759293481111,0.7618,4154.6,4154.5,1.43460003]
[1759293481305,1.0068,4154.6,4154.5,0.43319]
[1759293481503,1.0068,4154.6,4154.5,0.64999]
[1759293481808,1.0068,4154.6,4154.5,0.43319]
[1759293483209,1.0068,4154.6,4154.5,0.64999]
[1759293483697,0.7618,4154.6,4154.5,1.98500003]
[1759293483903,0.7618,4154.6,4154.5,2.20510003]
[1759293484108,1.0068,4154.6,4154.5,2.33860003]
[1759293484409,1.0068,4154.6,4154.5,1.87150003]
[1759293484609,1.0068,4154.6,4154.5,0.64999]
[1759293485010,1.0068,4154.6,4154.5,0.98359]
[1759293485413,0.4732,4154.5,4153.6,3.84830782]
[1759293485603,0.7618,4154.2,4154.1,0.43323]
[1759293485804,1.0068,4154.2,4154.1,0.43323]
[1759293486512,1.0068,4154.2,4154.1,0.65003]
[1759293487717,1.0068,4154.2,4154.1,0.43323]
[1759293487909,0.4231,4153.7,4153.6,3.4246]
[1759293488116,0.7618,4153.7,4153.6,3.85788]
[1759293488317,0.7618,4153.7,4153.6,4.41158]
[1759293488906,0.7618,4153.7,4153.6,3.85788]
[1759293489206,0.7618,4153.7,4153.6,3.64108]
[1759293489616,0.7618,4153.7,4153.6,3.2078]
[1759293490208,0.7618,4153.7,4153.4,0.4333]
[1759293490209,0.5576,4153.5,4153.4,0.4333]
[1759293490406,0.4231,4153.4,4153.3,0.2168]
[1759293490712,1.0068,4153.4,4153.3,0.2168]
[1759293491012,1.0068,4153.4,4153.3,0.65011]
[1759293492008,1.0068,4153.4,4153.3,0.98371]
[1759293492316,1.0068,4153.4,4153.3,1.20381]
[1759293495804,1.0068,4153.4,4153.3,0.65011]
[1759293496418,1.0068,4153.4,4153.3,0.98371]
[1759293497816,1.0068,4153.4,4153.3,0.43331]
[1759293498116,1.0068,4153.4,4153.3,0.65011]
[1759293498810,1.0068,4153.4,4153.2,0.00173551]
[1759293499006,0.7618,4153.3,4153.2,0.43505551]
[1759293499908,0.7618,4153.3,4153.2,0.64275551]
[1759293501312,1.19511,4153.3,4153.2,0.00173551]
[1759293501510,7.19652003,4153.3,4153.2,0.00173551]
[1759293501704,0.7666,4152.7,4152.6,0.43338]
[1759293501920,0.5698,4152.5,4152.4,0.4334]
[1759293502117,0.8983,4152.5,4152.4,0.4334]
[1759293502413,0.8983,4152.5,4152.0,3.2078]
[1759293502617,1.0116,4152.4,4152.3,0.43341]
[1759293503524,0.7502,4152.2,4152.1,0.43343]
[1759293503719,0.75215328,4152.2,4152.1,0.96253]
[1759293505317,0.75215328,4152.2,4152.1,1.18723]
[1759293505705,0.54435328,4152.2,4152.1,1.18723]
[1759293506111,0.78935328,4152.2,4152.1,1.18723]
[1759293506319,0.78935328,4152.2,4152.0,0.13804939]
[1759293506320,0.7502,4152.1,4152.0,0.97188939]
[1759293506508,0.2287,4152.1,4152.0,1.32528939]
[1759293507409,0.5424,4152.1,4152.0,1.32528939]
[1759293507614,0.7502,4152.1,4152.0,1.18988939]
[1759293508325,0.7502,4152.1,4152.0,0.75644939]
[1759293509119,0.9952,4152.1,4152.0,0.75644939]
[1759293511522,0.9952,4152.1,4152.0,0.00264939]
[1759293511721,0.9952,4152.1,4152.0,0.75644939]
[1759293514226,0.9952,4152.1,4152.0,1.18989939]
[1759293514928,0.9952,4152.1,4152.0,0.96519939]
[1759293516025,3.52345328,4152.2,4152.1,1.18724]
[1759293516217,3.52345328,4152.2,4152.1,2.05384512]
[1759293516218,3.99715328,4152.2,4152.1,2.05384512]
[1759293516422,4.20495328,4152.2,4152.1,2.05384512]
[1759293517128,4.20495328,4152.2,4152.1,1.51804512]
[1759293517326,4.20495328,4152.2,4152.0,0.00264939]
[1759293517627,4.63838328,4152.2,4152.0,0.00264939]
[1759293518025,0.7502,4152.1,4152.0,0.43608939]
[1759293518824,0.9952,4152.1,4152.0,0.65408939]
[1759293519026,0.9952,4152.1,4152.0,0.96518939]
[1759293519622,0.9952,4152.1,4152.0,1.18988939]
[1759293522029,0.7502,4152.1,4152.0,1.18988939]
[1759293522333,0.9952,4152.1,4152.0,1.32528939]
[1759293523833,0.7502,4152.1,4152.0,1.32528939]
[1759293524025,0.9952,4152.1,4152.0,1.32528939]
[1759293525333,0.9952,4152.1,4152.0,1.18988939]
[1759293527934,1.42864,4152.1,4152.0,1.18988939]
[1759293529135,0.9952,4152.1,4152.0,1.18988939]
[1759293530028,1.42863,4152.1,4152.0,1.18988939]
[1759293530932,1.42863,4152.1,4152.0,0.00264939]
[1759293531131,1.42863,4152.1,4152.0,0.43608939]
[1759293532135,0.9952,4152.1,4152.0,0.43608939]
[1759293532339,0.9952,4152.1,4152.0,0.65408939]
[1759293532637,1.42863,4152.1,4152.0,0.65408939]
[1759293533039,1.42863,4152.1,4152.0,0.96518939]
[1759293533338,1.42864,4152.1,4152.0,0.96518939]
[1759293534037,0.9952,4152.1,4152.0,0.96518939]
[1759293534634,0.9952,4152.1,4152.0,1.19278939]
[1759293534933,3.20975328,4152.2,4152.1,0.43344]
[1759293535135,3.45475328,4152.2,4152.1,1.21124]
[1759293535336,3.88805328,4152.2,4152.1,1.21124]
[1759293535639,4.22815328,4152.2,4152.1,1.21124]
[1759293536237,4.66158328,4152.2,4152.1,1.21124]
[1759293537737,1.20684,4152.1,4152.0,0.43609939]
[1759293537932,1.20684,4152.1,4152.0,0.00264939]
[1759293541046,6.20684,4152.1,4152.0,0.00264939]
[1759293545744,0.43353,4151.2,4151.1,1.30014512]
[1759293546049,1.0184,4151.2,4151.1,1.21134]
[1759293546346,1.0184,4151.2,4151.1,2.07794512]
[1759293546543,0.8047,4151.2,4151.1,2.07794512]
[1759293546848,0.8047,4151.2,4151.1,2.08049709]
[1759293547346,1.0184,4151.2,4151.1,2.08049709]
[1759293547546,1.45193,4151.2,4151.1,0.21655197]
[1759293548146,1.45193,4151.2,4151.1,0.00255197]
[1759293549646,1.45193,4151.2,4151.1,0.65009197]
[1759293549852,1.45193,4151.2,4151.1,0.98629197]
[1759293551054,1.45193,4151.2,4151.1,0.65009197]
[1759293551452,1.45193,4151.2,4151.1,0.21655197]
[1759293551653,1.45193,4151.2,4151.1,0.00255197]
[1759293551847,1.45193,4151.2,4150.4,0.64050782]
[1759293551848,0.5605,4150.5,4150.4,0.64050782]
[1759293552147,0.5605,4150.5,4149.9,0.43367]
[1759293552148,0.2196,4150.0,4149.9,0.43367]
[1759293552354,1.1456,4150.0,4149.9,1.21147]
[1759293552547,1.0184,4150.0,4149.9,1.21147]
[1759293552856,1.0184,4150.0,4149.9,0.77988456]
[1759293553653,1.1456,4150.0,4149.9,0.77988456]
[1759293553854,1.1456,4150.0,4149.9,0.00208456]
[1759293554057,1.1456,4150.0,4149.9,0.21608456]
[1759293554354,1.1456,4150.0,4149.9,0.00208456]
[1759293556545,1.1456,4150.0,4149.9,0.21608456]
[1759293557253,1.1456,4150.0,4149.9,0.00208456]
[1759293562857,1.1456,4150.0,4149.9,0.43575456]
[1759293563671,1.0184,4150.0,4149.9,1.19535456]
[1759293564263,1.1558,4150.0,4149.9,1.19535456]
[1759293568351,1.58946,4150.0,4149.9,1.19535456]
[1759293568656,1.58946,4150.0,4149.9,0.00208456]
[1759293569963,1.58946,4150.0,4149.9,0.43575456]
[1759293570264,1.58946,4150.0,4149.9,0.00208456]
[1759293572361,0.7788,4149.1,4149.0,3.2078]
[1759293572662,1.0238,4149.1,4149.0,3.2078]
[1759293572961,1.45755,4149.1,4149.0,0.43376]
[1759293573155,1.0238,4149.1,4149.0,0.2143]
[1759293573454,1.0238,4149.1,4148.7,0.75029]
[1759293573455,0.43377,4148.9,4148.7,0.75029]
[1759293573658,1.0238,4148.8,4148.7,0.96719006]
[1759293573961,1.0238,4148.8,4148.7,1.19599006]
[1759293575751,1.0238,4148.8,4148.7,0.00260006]
[1759293579453,1.0238,4148.8,4148.7,0.53340006]
[1759293579755,1.0238,4148.8,4148.7,0.76220006]
[1759293580361,1.0238,4148.8,4148.7,0.00260006]
[1759293581563,1.45758,4148.8,4148.7,0.00260006]
[1759293585569,6.45758,4148.8,4148.7,0.00260006]
[1759293586670,0.86824,4148.2,4148.1,0.43385]
[1759293586863,4.66544,4148.2,4148.1,0.43385]
[1759293587069,4.2316,4148.2,4148.1,0.43385]
[1759293587465,0.43386,4148.1,4147.9,0.45797888]
[1759293587663,1.21266,4148.1,4148.0,0.2143]
[1759293587864,1.45766,4148.1,4148.0,0.2143]
[1759293588766,0.9162,4148.0,4147.9,0.02630795]
[1759293589666,1.35007,4148.0,4147.9,0.02630795]
[1759293592467,1.35007,4148.0,4147.9,0.67448795]
[1759293592662,1.35007,4148.0,4147.9,1.21978795]
[1759293592869,1.0238,4148.0,4147.9,1.21978795]
[1759293593473,1.45767,4148.0,4147.9,1.21978795]
[1759293593683,1.0238,4148.0,4147.9,1.21978795]
[1759293594387,0.8047,4148.0,4147.9,1.21978795]
[1759293594685,0.4603,4148.0,4147.9,1.21978795]
[1759293594886,0.7862,4148.0,4147.9,1.21978795]
[1759293597093,1.22007,4148.0,4147.9,1.21978795]
[1759293597286,1.44087,4148.0,4147.9,1.21978795]
[1759293597788,1.007,4148.0,4147.9,1.21978795]
[1759293598091,1.44087,4148.0,4147.9,1.21978795]
[1759293598894,1.007,4148.0,4147.9,1.21978795]
[1759293599793,3.2078,4148.2,4148.1,0.781]
[1759293600092,3.9869,4148.2,4148.1,0.781]
[1759293600892,3.9869,4148.2,4148.1,1.21486]
[1759293600893,4.2077,4148.2,4148.1,1.21486]
[1759293601086,4.2077,4148.2,4148.1,0.98956]
[1759293602394,4.2077,4148.2,4148.1,1.21486]
[1759293605197,4.2077,4148.2,4148.1,0.43386]
[1759293605588,4.64154,4148.2,4148.1,0.43386]
[1759293605794,1.18876,4148.1,4148.0,0.43386]
[1759293606597,0.7549,4148.1,4148.0,0.43386]
[1759293607894,1.18876,4148.1,4148.0,0.43386]
[1759293608199,0.7549,4148.1,4148.0,0.43386]
[1759293608501,0.7549,4148.1,4148.0,0.98956]
[1759293609099,1.18876,4148.1,4148.0,0.98956]
[1759293609297,1.18876,4148.1,4148.0,0.65726]
[1759293609498,1.18876,4148.1,4148.0,0.65727]
[1759293610096,1.18876,4148.1,4148.0,0.2234]
[1759293610701,1.18876,4148.1,4148.0,0.65727]